[Event "1st South American-ch 2023"]
[Site "Lima"]
[Date "2023.09.17"]
[Round "4.1"]
[White "Cori, Jorge"]
[Black "Perez Gormaz, Matias"]
[Result "1-0"]
[Annotator "TA"]
[ECO "B15"]
[WhiteElo "2627"]
[BlackElo "2391"]
[PlyCount "54"]
[EventDate "2023.09.17"]
[EventType "swiss"]
[EventCountry "PER"]
[SourceTitle "playchess.com"]
[Source "ChessBase"]
[SourceQuality "1"]
[TimeControl "5400+30"]

{[%evp 15,54,21,20,0,14,0,0,0,0,4,32,25,29,20,34,22,42,36,36,7,61,35,39,0,0,0,22,23,51,23,28,18,16,7,8,-17,23,-6,29991,29992,29998]} 1. e4 {[%emt 0:00:20]} c6 {[%emt 0:01:06]} 2. d4 {[%emt 0:00:50]} d5 {[%emt 0:00:11]} 3. Nc3 {[%emt 0:00:08]} dxe4 {[%emt 0:00:19]} 4. Nxe4 {[%emt 0:00:06]} Nf6 {[%emt 0:00:20]} 5. Nxf6+ {[%emt 0:00:39]} exf6 {[%emt 0:00:08]} 6. c3 {[%emt 0:03:24]} Bd6 {[%emt 0:00:12]} 7. Bd3 {[%emt 0:00:04]} O-O {[%emt 0:00:10]} 8. Ne2 {[%emt 0:00:02][%cal Bg1e2,Be2g3,Bg3e4][%mdl 32]} Re8 {[%emt 0:00:09]} 9. Be3 {[%emt 0:01:53] B15: Caro-Kann: 3 Nc3: 3...g6 and 3...dxe4 4 Nxe4 Nf6 5 Nxf6+ exf6.} Nd7 {[%emt 0:03:23][%cal Bb8d7,Bd7f8,Bf8e6][%mdl 32]} 10. O-O {[%emt 0:00:31]} Qc7 {[%emt 0:00:37]} 11. Ng3 {[%emt 0:00:19] [#] The position is equal.} g6 $146 {[%emt 0:07:07]} ({Predecessor:} 11... Nf8 12. Qd2 h5 13. f4 h4 14. Ne4 h3 15. Rae1 Be6 16. Qf2 f5 17. Ng5 hxg2 18. Qxg2 {1-0 Priasmoro,N (2501)-Jumabayev,R (2628) Titled Tuesday intern op 31st May Early blitz 2022 (6)}) 12. Re1 {[%emt 0:00:29]} Nf8 {[%emt 0:12:00]} (12... f5 $5 {[%cal Rf5f4]} 13. Bh6 Rxe1+ 14. Qxe1 Nf6 $11) 13. Ne4 {[%emt 0:08:19]} Be7 {[%emt 0:01:40]} ({Not} 13... Bxh2+ 14. Kh1 Rxe4 15. Bxe4 $16) 14. Bh6 {[%emt 0:00:07][%cal Oe4f6] [#] Nxf6+! would be deadly.} Ne6 {[%emt 0:06:51]} (14... Bd7 {with more complications.} 15. a4 f5 16. Ng5 Bd6) 15. Bc4 {[%emt 0:01:06]} Bd7 {[%emt 0:03:24]} 16. a4 {[%emt 0:02:33]} (16. g4 {keeps more tension.} Ng7 17. Qf3 f5 18. Bxg7 Kxg7 19. gxf5 Bxf5 20. Ng3) 16... Rad8 {[%emt 0:12:11]} 17. b4 {[%emt 0:07:17]} (17. g4 {is interesting.} Ng7 18. Qf3 f5 19. Bg5) 17... b6 {[%emt 0:04:24]} (17... a5 $11) 18. Qb3 {[%emt 0:00:43] White is much more active.} (18. g4 {looks sharper.} Ng7 19. Qf3 f5 20. Bxg7 Kxg7 21. gxf5 Bxf5 22. Ng3) 18... Bc8 {[%emt 0:01:50]} 19. Re2 {[%emt 0:23:39]} (19. b5 $5 {[%cal Rb5c6]}) 19... f5 {[%emt 0:11:18]} 20. Nd2 {[%emt 0:00:31][%cal Rc4e6]} Bd6 {[%emt 0:01:22]} 21. Nf3 {[%emt 0:01:07]} a6 {[%emt 0:06:47]} 22. Rae1 {[%emt 0:02:07] Ng5 is the strong threat.} (22. b5 {keeps more tension.} axb5 23. axb5 Bd7 24. bxc6 Bxc6 25. Bxe6 Rxe6 26. Rxe6 fxe6 27. Qxe6+ Qf7 28. Qxf7+ Kxf7 29. Ng5+) 22... b5 {[%emt 0:00:43]} 23. axb5 {[%emt 0:05:01]} axb5 {[%emt 0:00:06]} 24. Bd3 {[%emt 0:04:26]} Ng7 {[%emt 0:06:51]} 25. Re3 {[%emt 0:37:19]} Re6 26. Rxe6 {[%emt 0:00:00]} Re8 $2 {[%mdl 8192] [#]} (26... Bxe6 $11 27. c4 Bf8) 27. Rxe8+ {[%emt 0:00:00]} Nxe8 {[%emt 0:01:05] Weighted Error Value: White=0.14 (very precise) /Black=0.46} 1-0

[Event "1st South American-ch 2023"]
[Site "Lima"]
[Date "2023.09.17"]
[Round "4.2"]
[White "Terry, Renato"]
[Black "Leiva, Gianmarco"]
[Result "1/2-1/2"]
[Annotator "TA"]
[ECO "D02"]
[WhiteElo "2520"]
[BlackElo "2393"]
[PlyCount "29"]
[EventDate "2023.09.17"]
[EventType "swiss"]
[EventCountry "PER"]
[SourceTitle "playchess.com"]
[Source "ChessBase"]
[SourceQuality "1"]
[TimeControl "5400+30"]

{[%evp 12,15,24,14,70,70]} 1. d4 {[%emt 0:01:19]} e6 {[%emt 0:01:18]} 2. Nf3 {[%emt 0:00:06]} c5 {[%emt 0:00:31]} 3. g3 {[%emt 0:00:06]} cxd4 {[%emt 0:02:00]} 4. Nxd4 {[%emt 0:00:08]} d5 {[%emt 0:00:31]} 5. Bg2 {[%emt 0:00:05]} Nf6 {[%emt 0:00:11]} 6. O-O {[%emt 0:00:06]} e5 {[%emt 0:00:25]} 7. Nb3 {[%emt 0:00:02]} h6 {[%emt 0:03:07] [#] D02: 1 d4 d5 2 Nf3 sidelines, including 2...Nf6 3 g3 and 2...Nf6 3 Bf4.} (7... Be6 $11) 8. c4 $1 {[%emt 0:01:12] [#]} {Predecessor:} d4 $146 9. e3 d3 10. Nc3 Nc6 11. Nd5 Bf5 12. e4 Nxe4 13. Qxd3 Nd6 14. Qe2 Be6 15. Rd1 {1-0 Repka,C (2488)-Fedoseev,V (2678) US Collegiate Blitz 2020 (6)} 1/2-1/2

[Event "1st South American-ch 2023"]
[Site "Lima"]
[Date "2023.09.17"]
[Round "4.3"]
[White "Flores Quillas, Diego Saul Rodri"]
[Black "Cruz, Cristhian"]
[Result "1/2-1/2"]
[Annotator "TA"]
[ECO "C67"]
[WhiteElo "2357"]
[BlackElo "2495"]
[PlyCount "45"]
[EventDate "2023.09.17"]
[EventType "swiss"]
[EventCountry "PER"]
[SourceTitle "playchess.com"]
[Source "ChessBase"]
[SourceQuality "1"]
[TimeControl "5400+30"]

{[%evp 27,28,0,0]} 1. e4 {[%emt 0:04:53]} e5 {[%emt 0:00:20]} 2. Nf3 {[%emt 0:00:11]} Nc6 {[%emt 0:01:27]} 3. Bb5 {[%emt 0:00:43]} Nf6 {[%emt 0:03:11]} 4. O-O {[%emt 0:01:38]} Nxe4 {[%emt 0:01:01]} 5. d4 {[%emt 0:01:19][%cal Bd2d4,Bd4e5][%mdl 32]} Nd6 {[%emt 0:01:24]} 6. dxe5 {[%emt 0:01:35]} Nxb5 {[%emt 0:00:14]} 7. a4 {[%emt 0:00:04]} Nbd4 {[%emt 0:00:45]} 8. Nxd4 {[%emt 0:00:25]} Nxd4 {[%emt 0:00:09]} 9. Qxd4 {[%emt 0:00:02]} d5 {[%emt 0:00:19]} 10. exd6 {[%emt 0:01:15]} Qxd6 {[%emt 0:00:52]} 11. Qe4+ {[%emt 0:00:14]} Qe6 {[%emt 0:00:27]} 12. Qd4 {[%emt 0:00:07]} Qd6 {[%emt 0:00:24]} 13. Qe4+ {[%emt 0:00:20]} Qe6 {[%emt 0:00:20]} 14. Qd4 {[%emt 0:00:09]} Qd6 {[%emt 0:01:48] [#]} {Predecessor:} 15. Qe3+ $146 {C67: Ruy Lopez: Berlin Defence: 4 0-0 Nxe4.} Be6 16. Nc3 a6 17. Rd1 Qc6 18. Rd3 Be7 19. Ne2 Bf6 20. Nd4 Bxd4 21. Qxd4 f6 22. Bf4 O-O 23. Rc3 {½-½ Li,C (2658)-Wang,Y (2674) CHN-chT DivA 2023 (2.4)} 1/2-1/2

[Event "1st South American-ch 2023"]
[Site "Lima"]
[Date "2023.09.17"]
[Round "4.4"]
[White "Vera Siguenas, Deivy"]
[Black "Vivas Zamora, Fabian Ernesto"]
[Result "1-0"]
[Annotator "TA"]
[ECO "D80"]
[WhiteElo "2463"]
[BlackElo "2346"]
[PlyCount "97"]
[EventDate "2023.09.17"]
[EventType "swiss"]
[EventCountry "PER"]
[SourceTitle "playchess.com"]
[Source "ChessBase"]
[SourceQuality "1"]
[TimeControl "5400+30"]

{[%evp 11,97,20,30,24,21,0,0,0,11,-37,-33,-33,35,-89,-11,-37,-25,-17,-18,-17,-17,-20,-8,-15,-14,-27,-19,-9,-17,-16,0,0,320,316,519,500,475,285,256,0,0,0,717,743,114,841,823,804,795,790,773,773,866,598,633,422,1515,1494,1466,1437,729,539,4132,0,1631,1614,1294,1401,1341,1175,2466,2459,2015,1909,1620,1423,2452,1993,1519,1532,4845,4809,29975,29976,29980,29980,29980,29976]} 1. d4 {[%emt 0:00:20]} Nf6 {[%emt 0:02:41]} 2. c4 {[%emt 0:00:07]} g6 {[%emt 1:28:49]} 3. Nc3 {[%emt 0:00:03]} d5 {[%emt 0:00:00]} 4. Bg5 {[%emt 0:00:04]} Bg7 {[%emt 0:00:00]} 5. Bxf6 {[%emt 0:00:05]} Bxf6 {[%emt 0:00:00]} 6. cxd5 {[%emt 0:00:04]} c6 {[%emt 0:00:00]} 7. e4 {[%emt 0:00:27][%cal Be2e4,Be4e5][%mdl 32] D80: Grünfeld: Unusual White 4th moves and 4 Bg5.} O-O {[%emt 0:00:00]} 8. h4 {[%emt 0:00:39]} (8. e5 $5 {[%cal Re5f6]} Bg7 9. Bc4 $11) 8... cxd5 {[%emt 0:00:00]} 9. e5 {[%emt 0:04:48] The position is equal.} Bg7 {[%emt 0:00:00] [#]} 10. Bd3 $146 {[%emt 0:00:06]} (10. h5 $1 $11 {might be stronger.}) ({Predecessor:} 10. h5 Nc6 11. h6 Bh8 12. Qd2 f6 13. f4 Bf5 14. Nf3 Rc8 15. Be2 e6 16. Nh4 fxe5 17. fxe5 {0-1 Sammalvuo,T (2436)-Kantans,T (2541) LTU-ch rapid op 2017 (11)}) 10... Nc6 $15 {[%emt 0:00:00]} 11. Nge2 {[%emt 0:00:17][%cal Bg1e2,Be2d4,Bd4f3,Bf3g5][%mdl 32]} Qb6 {[%emt 0:00:00]} ({Black should try} 11... f6 $15 12. exf6 Bxf6) 12. Qa4 {[%emt 0:10:49]} (12. Qd2 $14 {keeps the upper hand.}) 12... Qb4 {[%emt 0:00:00]} (12... Qxb2 $2 13. Rb1 $18) (12... Bd7 $17 {[%cal Oc6e5] ...Nxe5! would be deadly.} 13. Bb5 e6) 13. Bb5 {[%emt 0:09:34] [#]} Nxd4 {[%emt 0:00:00]} 14. Nxd4 {[%emt 0:01:37]} Qxb2 {[%emt 0:00:00]} 15. O-O $1 {[%emt 0:00:14]} Qxc3 {[%emt 0:00:00]} 16. Rac1 {[%emt 0:06:32]} Qd2 {[%emt 0:00:00]} 17. Nf3 {[%emt 0:01:58]} Qh6 {[%emt 0:00:00] Threatening ...Bf5.} 18. Rc7 {[%emt 0:00:41]} Bf5 {[%emt 0:00:00]} 19. Rxe7 {[%emt 0:00:30]} Be4 {[%emt 0:00:00]} 20. Be2 {[%emt 0:00:23]} Rac8 {[%emt 0:00:00]} (20... Qf4 $5) 21. Qd7 {[%emt 0:04:15]} Rc1 $2 {[%emt 0:03:39][%mdl 8192]} (21... Bxf3 $11 {and Black is okay.} 22. Bxf3 Rcd8 23. Qxb7 Qxh4) 22. Ng5 $18 {[%emt 0:05:09]} Rxf1+ {[%emt 0:00:11]} (22... Bxg2 23. Kxg2 Rxf1 24. Kxf1 Qxh4) 23. Bxf1 {[%emt 0:00:13][%cal Re7f7]} Bf5 {[%emt 0:03:00]} 24. Qxb7 {[%emt 0:06:20][%cal Re7f7]} Be6 {[%emt 0:00:46]} 25. f4 $2 {[%emt 0:00:07]} (25. Nxe6 fxe6 26. g3 (26. Rxe6 Qd2 $17) (26. Qxa7 Bxe5 27. Rxe6 Qf4 $11) 26... Bxe5 $16) (25. Qxa7 $6 Bxe5 26. Qe3 (26. Nxe6 fxe6 27. Rxe6 Qf4 $11) 26... Bf6 27. Rxe6 fxe6 $16) (25. Qc7 $18) 25... Qxh4 $11 {[%emt 0:03:20]} 26. Nxe6 {[%emt 0:00:24]} (26. Qxa7 $2 Bh6 27. Qe3 Bxg5 28. fxg5 d4 $19) 26... Bxe5 $2 {[%emt 0:00:08][%mdl 8192] [#] Black is on the road to losing.} 27. Rxf7 $3 $18 {[%emt 0:03:53][%csl Ge6][%cal Rf7f8][%mdl 576] Deflection, Back Rank} Bd4+ {[%emt 0:00:09]} 28. Nxd4 {[%emt 0:00:02]} Rxf7 {[%emt 0:00:05]} 29. Qa8+ {[%emt 0:00:04]} (29. Qxd5 Qxf4 30. Bc4 Qf2+ 31. Kh2 (31. Kh1 Qh4+ 32. Kg1 Qf2+ 33. Kh2 Qh4+ 34. Kg1 Qf2+ $11) 31... Qh4+ 32. Kg1 Qf2+ 33. Kh2 (33. Kh1 Qh4+ 34. Kg1 Qf2+ $11) 33... Qh4+ 34. Kg1 Qf2+ $11) 29... Kg7 {[%emt 0:02:12]} 30. Ne6+ {[%emt 0:01:32]} Kh6 {[%emt 0:00:00]} 31. Qxd5 {[%emt 0:00:08]} Qg3 {[%emt 0:00:22]} 32. Qc5 {[%emt 0:03:47]} a5 {[%emt 0:00:36]} 33. a4 {[%emt 0:00:20] Hoping for Qe5.} (33. Qxa5 $2 Qe3+ 34. Kh2 Rf5 $19) 33... Qg4 {[%emt 0:00:28]} (33... Rxf4 $142 34. Nxf4 (34. Qxa5 $2 Qe3+ 35. Kh2 Rh4#) 34... Qxf4) 34. Qe3 {[%emt 0:01:59] White threatens Be2 and mate.} Rf6 {[%emt 0:00:08]} 35. f5+ {[%emt 0:07:46]} g5 {[%emt 0:00:01]} 36. Bd3 {[%emt 0:00:10] Strongly threatening Qa7.} ({Less strong is} 36. Nd4 Rd6 37. Nb5 Rc6 $18) 36... Rf7 {[%emt 0:00:27] Dodges Qa7} 37. Nd4 $2 {[%emt 0:04:56]} (37. Bc2 $18 Qh4 38. Qe5) 37... Qf4 $2 {[%emt 0:00:40][%mdl 8192]} (37... Re7 $11 38. Ne6 (38. Qxe7 Qxd4+ 39. Kh2 Qh4+ 40. Kg1 Qd4+ 41. Kh2 Qh4+ 42. Kg1 Qd4+ $11) 38... Rf7) 38. Qxf4 {[%emt 0:07:32]} gxf4 {[%emt 0:00:01]} 39. Ne6 {[%emt 0:00:06]} Rd7 {[%emt 0:00:50]} 40. Be4 {[%emt 0:00:05][%cal Og1f2]} ({Weaker is} 40. Nxf4 Kg5 $18) 40... Kh5 {[%emt 0:01:18]} 41. Nxf4+ {[%emt 0:00:41]} Kg4 {[%emt 0:00:36]} 42. Nd5 {[%emt 0:00:06] White wants to mate with Nf6+.} Kg3 {[%emt 0:00:14]} 43. f6 {[%emt 0:01:05][%cal Bf5f6,Bf6f7][%mdl 32]} h5 {[%emt 0:00:37]} 44. Kf1 {[%emt 0:00:11] Threatens to win with Ne7.} Rb7 {[%emt 0:00:30]} 45. Ke2 {[%emt 0:02:33]} h4 {[%emt 0:00:33]} 46. Ke3 {[%emt 0:00:43] aiming for Ne7.} Rb2 {[%emt 0:00:38]} 47. f7 {[%emt 0:00:39] White mates.} Rb8 {[%emt 0:00:06]} 48. Nf6 {[%emt 0:00:32]} Rf8 {[%emt 0:00:07]} 49. Bd5 {[%emt 0:00:05] A fantastic game!   Weighted Error Value: White=0.84/Black=0.66} 1-0

[Event "1st South American-ch 2023"]
[Site "Lima"]
[Date "2023.09.17"]
[Round "4.5"]
[White "Tomiello, Lucas Costamilan"]
[Black "Barrientos, Sergio E"]
[Result "1-0"]
[Annotator "RC"]
[ECO "B41"]
[WhiteElo "2253"]
[BlackElo "2457"]
[PlyCount "63"]
[EventDate "2023.09.17"]
[EventType "swiss"]
[EventCountry "PER"]
[SourceTitle "playchess.com"]
[Source "ChessBase"]
[SourceQuality "1"]
[TimeControl "5400+30"]

1. e4 {[%emt 0:00:03]} c5 {[%emt 0:04:05]} 2. Nf3 {[%emt 0:00:06]} e6 {[%emt 0:00:26]} 3. d4 {[%emt 0:00:17]} cxd4 {[%emt 0:00:03]} 4. Nxd4 {[%emt 0:00:07]} a6 {[%emt 0:00:31]} 5. c4 {[%emt 0:00:31]} Nf6 {[%emt 0:01:48]} 6. Nc3 {[%emt 0:00:43]} Bb4 {[%emt 0:00:13]} 7. e5 {[%emt 0:05:32]} Ne4 {[%emt 0:00:41]} 8. Qd3 {[%emt 0:00:42]} d5 {[%emt 0:11:50]} 9. exd6 {[%emt 0:10:24]} Nxc3 {[%emt 0:02:11]} 10. bxc3 {[%emt 0:00:03]} Bxd6 {[%emt 0:00:12]} 11. Be3 {[%emt 0:04:15]} O-O {[%emt 0:06:04]} 12. Rd1 {[%emt 0:02:11]} Bc7 {[%emt 0:00:41]} 13. Qc2 {[%emt 0:04:23]} Qe7 {[%emt 0:03:33]} 14. Bd3 {[%emt 0:01:51]} f5 {[%emt 0:00:27]} 15. O-O {[%emt 0:01:06]} Nd7 {[%emt 0:02:01]} 16. Rfe1 {[%emt 0:06:23]} Nc5 {[%emt 0:02:32]} 17. f4 {[%emt 0:10:47]} Bd7 {[%emt 0:07:53]} 18. Qf2 {[%emt 0:09:16]} Nxd3 {[%emt 0:07:25]} 19. Rxd3 {[%emt 0:00:19]} Rac8 {[%emt 0:00:36]} 20. Qf3 {[%emt 0:08:42]} e5 {[%emt 0:06:03]} 21. Qd5+ {[%emt 0:02:58]} Rf7 {[%emt 0:00:17]} 22. fxe5 {[%emt 0:01:07]} Qxe5 {[%emt 0:00:22]} 23. Nf3 {[%emt 0:07:34]} Qxd5 {[%emt 0:00:20]} 24. cxd5 {[%emt 0:00:08]} Bb5 {[%emt 0:00:39]} 25. Rdd1 {[%emt 0:05:59]} Ba5 {[%emt 0:00:16]} 26. Ne5 {[%emt 0:00:51]} Re7 {[%emt 0:01:28]} 27. Bd4 {[%emt 0:03:02]} Rd8 {[%emt 0:02:06]} 28. a4 {[%emt 0:04:49]} Be8 {[%emt 0:08:43]} 29. Nc4 {[%emt 0:00:54]} Rxe1+ {[%emt 0:00:08]} 30. Rxe1 {[%emt 0:00:01]} Bc7 {[%emt 0:00:05]} 31. d6 {[%emt 0:03:38]} Bb8 {[%emt 0:01:52]} 32. Bb6 {[%emt 0:00:05]} 1-0

[Event "1st South American-ch 2023"]
[Site "Lima"]
[Date "2023.09.17"]
[Round "4.6"]
[White "Fernandez, Fernando"]
[Black "Zambrana, Osvaldo"]
[Result "0-1"]
[Annotator "RC"]
[ECO "B40"]
[WhiteElo "2418"]
[BlackElo "2380"]
[PlyCount "46"]
[EventDate "2023.09.17"]
[EventType "swiss"]
[EventCountry "PER"]
[SourceTitle "playchess.com"]
[Source "ChessBase"]
[SourceQuality "1"]
[TimeControl "5400+30"]

1. e4 {[%emt 0:00:36]} c5 {[%emt 0:01:41]} 2. Nf3 {[%emt 0:00:10]} e6 {[%emt 0:01:21]} 3. c3 {[%emt 0:04:49]} Nf6 {[%emt 0:03:41]} 4. Bd3 {[%emt 0:00:38]} Nc6 {[%emt 0:02:28]} 5. O-O {[%emt 0:05:52]} Be7 {[%emt 0:04:52]} 6. Bc2 {[%emt 0:03:57]} Qc7 {[%emt 0:03:57]} 7. Re1 {[%emt 0:10:41]} b6 {[%emt 0:06:49]} 8. d4 {[%emt 0:04:45]} cxd4 {[%emt 0:07:50]} 9. cxd4 {[%emt 0:00:46]} Nb4 {[%emt 0:00:03]} 10. Ba4 {[%emt 0:10:56]} Ba6 {[%emt 0:03:45]} 11. Nc3 {[%emt 0:02:45]} O-O {[%emt 0:01:57]} 12. e5 {[%emt 0:21:01]} Nfd5 {[%emt 0:01:00]} 13. Nxd5 {[%emt 0:02:38]} Nxd5 {[%emt 0:01:36]} 14. Bg5 {[%emt 0:05:28]} Bxg5 {[%emt 0:13:42]} 15. Nxg5 {[%emt 0:00:03]} f6 {[%emt 0:00:44]} 16. Rc1 {[%emt 0:01:41]} Qd8 {[%emt 0:02:03]} 17. Ne4 {[%emt 0:04:27]} Qe7 {[%emt 0:06:23]} 18. Bb3 {[%emt 0:01:37]} Bb7 {[%emt 0:00:42]} 19. exf6 {[%emt 0:11:12]} Nxf6 {[%emt 0:02:02]} 20. Nc3 {[%emt 0:02:21]} Qf7 {[%emt 0:02:30]} 21. Qd3 {[%emt 0:00:30]} Nh5 {[%emt 0:00:56]} 22. Qe3 {[%emt 0:01:02]} Nf4 {[%emt 0:00:51]} 23. Ne4 {[%emt 0:00:15]} Qg6 {[%emt 0:01:18]} 0-1

[Event "1st South American-ch 2023"]
[Site "Lima"]
[Date "2023.09.17"]
[Round "4.7"]
[White "Minaya Mundines, Pietro Gerardo"]
[Black "Vasquez Vargas, Henry Richard"]
[Result "0-1"]
[Annotator "RC"]
[ECO "A16"]
[WhiteElo "1584"]
[BlackElo "2124"]
[PlyCount "98"]
[EventDate "2023.09.17"]
[EventType "swiss"]
[EventCountry "PER"]
[SourceTitle "playchess.com"]
[Source "ChessBase"]
[SourceQuality "1"]
[TimeControl "5400+30"]

1. Nf3 {[%emt 0:00:03]} Nf6 {[%emt 0:00:12]} 2. c4 {[%emt 0:00:07]} g6 {[%emt 0:01:31]} 3. Nc3 {[%emt 0:00:06]} d5 {[%emt 0:00:49]} 4. cxd5 {[%emt 0:00:09]} Nxd5 {[%emt 0:00:17]} 5. e4 {[%emt 0:00:11]} Nb6 {[%emt 0:01:03]} 6. h3 {[%emt 0:00:07]} c5 {[%emt 0:03:36]} 7. d4 {[%emt 0:00:08]} cxd4 {[%emt 0:13:11]} 8. Qxd4 {[%emt 0:00:23]} Qxd4 {[%emt 0:04:01]} 9. Nxd4 {[%emt 0:00:08]} a6 {[%emt 0:01:59]} 10. Be3 {[%emt 0:00:20]} Bg7 {[%emt 0:02:29]} 11. Be2 {[%emt 0:02:17]} O-O {[%emt 0:02:08]} 12. O-O-O {[%emt 0:02:48]} e6 {[%emt 0:06:31]} 13. Nxe6 {[%emt 0:03:51]} Bxe6 {[%emt 0:00:25]} 14. Bxb6 {[%emt 0:00:24]} Bxc3 {[%emt 0:04:26]} 15. bxc3 {[%emt 0:01:19]} Bxa2 {[%emt 0:02:47]} 16. f4 {[%emt 0:04:20]} Bb3 {[%emt 0:02:38]} 17. Rd2 {[%emt 0:01:53]} Ba4 {[%emt 0:02:58]} 18. Bg4 {[%emt 0:06:10]} Bc6 {[%emt 0:05:54]} 19. Re1 {[%emt 0:06:26]} h5 {[%emt 0:01:25]} 20. Bd1 {[%emt 0:00:40]} Nd7 {[%emt 0:01:45]} 21. Bd4 {[%emt 0:02:19]} Rfe8 {[%emt 0:00:13]} 22. Rde2 {[%emt 0:10:06]} Bb5 {[%emt 0:04:36]} 23. Re3 {[%emt 0:00:41]} Rac8 {[%emt 0:00:50]} 24. g4 {[%emt 0:07:58]} h4 {[%emt 0:02:00]} 25. e5 {[%emt 0:07:01]} Nc5 {[%emt 0:01:22]} 26. Bxc5 {[%emt 0:02:25]} Rxc5 {[%emt 0:00:05]} 27. f5 {[%emt 0:01:20]} Bc4 {[%emt 0:03:51]} 28. e6 {[%emt 0:06:48]} Kg7 {[%emt 0:08:08]} 29. f6+ {[%emt 0:12:34]} Kxf6 {[%emt 0:04:13]} 30. Rf3+ {[%emt 0:01:28]} Kg7 {[%emt 0:02:28]} 31. Rxf7+ {[%emt 0:00:07]} Kh6 {[%emt 0:02:24]} 32. Bc2 {[%emt 0:02:23]} Bxe6 {[%emt 0:08:59]} 33. Rf6 {[%emt 0:01:53]} Bf7 {[%emt 0:00:01]} 34. Ref1 {[%emt 0:00:38]} Rxc3 {[%emt 0:00:13]} 35. Rxf7 {[%emt 0:01:45]} Re2 {[%emt 0:00:33]} 36. Rxb7 {[%emt 0:06:03]} Rcxc2+ {[%emt 0:00:29]} 37. Kb1 {[%emt 0:03:05]} Rc5 {[%emt 0:00:47]} 38. Rbf7 {[%emt 0:01:21]} Re4 {[%emt 0:01:48]} 39. R7f3 {[%emt 0:02:49]} Rb4+ {[%emt 0:00:59]} 40. Ka2 {[%emt 0:00:13]} Ra5+ {[%emt 0:00:13]} 41. Ra3 {[%emt 0:00:39]} Rxa3+ {[%emt 0:00:07]} 42. Kxa3 {[%emt 0:00:04]} a5 {[%emt 0:00:08]} 43. Rf3 {[%emt 0:00:20]} Rb1 {[%emt 0:01:09]} 44. Ka4 {[%emt 0:03:01]} Rg1 {[%emt 0:00:48]} 45. Rf2 {[%emt 0:00:14]} Rg3 {[%emt 0:00:46]} 46. Rh2 {[%emt 0:00:57]} Kg5 {[%emt 0:06:15]} 47. Kxa5 {[%emt 0:00:17]} Kf4 {[%emt 0:00:00]} 48. Kb4 {[%emt 0:00:45]} Rf3 {[%emt 0:00:00]} 49. Rh1 {[%emt 0:01:59]} Kg3 {[%emt 0:01:30]} 0-1